bitfinex/quotes_SOLUSD_20230104
["timestamp","ask_amount","ask_price","bid_price","bid_amount"]
[1672872751197,20.0,13.564,13.551,81.78775788]
[1672872751406,796.8267784,13.565,13.551,123.96281563]
[1672872751618,796.8267784,13.565,13.552,79.05273121]
[1672872751811,796.8267784,13.565,13.554,20.0]
[1672872752025,796.8267784,13.565,13.555,20.0]
[1672872752235,796.8267784,13.565,13.555,83.95624135]
[1672872752671,796.8267784,13.565,13.556,21.7811836]
[1672872752875,159.36535568,13.565,13.557,20.0]
[1672872753406,159.36535568,13.565,13.557,41.7811836]
[1672872753810,20.0,13.564,13.557,41.7811836]
[1672872754023,159.36535568,13.565,13.557,41.7811836]
[1672872755414,159.36535568,13.565,13.557,20.0]
[1672872755715,159.36535568,13.565,13.556,20.0]
[1672872755913,20.0,13.564,13.556,20.0]
[1672872756454,159.36535568,13.565,13.556,20.0]
[1672872756768,78.306547,13.594,13.556,20.0]
[1672872756958,159.36535568,13.565,13.56,183.75]
[1672872757175,159.36535568,13.565,13.561,20.0]
[1672872757607,159.36535568,13.565,13.554,20.0]
[1672872757803,20.0,13.564,13.554,20.0]
[1672872758549,159.36535568,13.565,13.554,20.0]
[1672872760128,20.0,13.564,13.555,21.7811836]
[1672872760339,20.0,13.564,13.554,46.44782841]
[1672872760554,159.36535568,13.565,13.554,68.22901201]
[1672872761691,20.0,13.564,13.554,68.22901201]
[1672872762342,20.0,13.564,13.554,46.44782841]
[1672872762752,159.36535568,13.565,13.554,46.44782841]
[1672872762972,159.36535568,13.564,13.554,46.44782841]
[1672872763181,20.0,13.563,13.554,46.44782841]
[1672872763603,159.36535568,13.564,13.555,21.7811836]
[1672872764035,159.36535568,13.564,13.555,68.22901201]
[1672872765187,159.36535568,13.564,13.556,21.7811836]
[1672872765595,159.36535568,13.564,13.556,68.22901201]
[1672872765826,159.36535568,13.565,13.557,20.0]
[1672872766022,159.36535568,13.564,13.557,41.7811836]
[1672872766227,159.36535568,13.564,13.558,68.22901201]
[1672872766555,159.36535568,13.564,13.559,86.44782841]
[1672872766777,159.36535568,13.564,13.559,108.22901201]
[1672872766956,159.36535568,13.564,13.56,68.22901201]
[1672872767169,159.36535568,13.564,13.561,20.0]
[1672872767376,159.36535568,13.564,13.561,66.44782841]
[1672872768853,519.45576668,13.6,13.561,66.44782841]
[1672872769065,159.36535568,13.564,13.561,66.44782841]
[1672872769275,159.36535568,13.564,13.562,46.44782841]
[1672872769504,159.36535568,13.564,13.563,20.0]
[1672872770664,159.36535568,13.564,13.563,88.22901201]
[1672872771585,159.36535568,13.564,13.563,127.01921962]
[1672872772014,159.36535568,13.564,13.563,105.23803602]
[1672872772225,159.36535568,13.564,13.563,66.44782841]
[1672872775828,159.36535568,13.564,13.563,105.23803602]
[1672872777504,159.36535568,13.564,13.563,66.44782841]
[1672872777908,159.36535568,13.564,13.563,20.0]
[1672872778132,159.36535568,13.564,13.56,20.0]
[1672872778343,159.36535568,13.564,13.56,66.44782841]
[1672872778962,78.306547,13.594,13.56,66.44782841]
[1672872779171,159.36535568,13.564,13.56,250.08782841]
[1672872779395,159.36535568,13.564,13.56,66.44782841]
[1672872780426,159.36535568,13.564,13.56,105.23803602]
[1672872780967,159.36535568,13.564,13.56,66.44782841]
[1672872781174,159.36535568,13.564,13.56,20.0]
[1672872781397,159.36535568,13.564,13.557,20.0]
[1672872781999,55.3,13.572,13.557,20.0]
[1672872782215,159.36535568,13.564,13.56,183.64]
[1672872782432,159.36535568,13.564,13.557,20.0]
[1672872783600,159.36535568,13.564,13.557,58.79020761]
[1672872785919,159.36535568,13.564,13.557,20.0]
[1672872786106,159.36535568,13.564,13.556,20.0]
[1672872788115,159.36535568,13.564,13.557,45.90554094]
[1672872788448,159.36535568,13.564,13.558,20.0]
[1672872788837,159.36535568,13.564,13.558,65.90554094]
[1672872789166,159.36535568,13.564,13.558,20.0]
[1672872789379,159.36535568,13.564,13.556,20.0]
[1672872789883,159.36535568,13.564,13.556,70.07154094]
[1672872790093,482.80576668,13.6,13.556,65.90554094]
[1672872790300,159.36535568,13.564,13.56,183.55]
[1672872790516,159.36535568,13.564,13.556,41.7811836]
[1672872790728,159.36535568,13.564,13.556,20.0]
[1672872792529,159.36535568,13.564,13.556,41.7811836]
[1672872793894,159.36535568,13.564,13.556,179.74199445]
[1672872794213,159.36535568,13.564,13.558,20.0]
[1672872794402,159.36535568,13.564,13.558,40.0]
[1672872794608,159.36535568,13.564,13.559,20.0]
[1672872795026,159.36535568,13.564,13.558,20.0]
[1672872795258,159.36535568,13.564,13.558,40.0]
[1672872795656,159.36535568,13.564,13.558,20.0]
[1672872795870,159.36535568,13.564,13.558,157.96081085]
[1672872796520,159.36535568,13.564,13.559,20.0]
[1672872796731,159.36535568,13.564,13.559,157.96081085]
[1672872796940,159.36535568,13.564,13.56,20.0]
[1672872799152,118.0201,13.566,13.56,20.0]
[1672872799368,159.36535568,13.564,13.56,203.75]
[1672872799578,159.36535568,13.564,13.56,20.0]
[1672872799894,159.36535568,13.564,13.56,157.96081085]
[1672872801778,159.36535568,13.564,13.561,137.96081085]
[1672872801991,159.36535568,13.564,13.562,20.0]
[1672872803255,159.36535568,13.564,13.562,157.96081085]
[1672872803678,159.36535568,13.564,13.562,137.96081085]
[1672872804193,118.0201,13.566,13.558,46.44782841]
[1672872804412,159.36535568,13.564,13.56,183.64]
[1672872804623,159.36535568,13.564,13.56,20.0]
[1672872804816,159.36535568,13.564,13.561,21.7811836]
[1672872805236,159.36535568,13.564,13.562,20.0]
[1672872805671,159.36535568,13.564,13.562,41.7811836]
[1672872807263,159.36535568,13.564,13.562,36.1820836]
[1672872807454,159.36535568,13.564,13.56,219.97660321]
[1672872807973,159.36535568,13.564,13.56,241.75778681]
[1672872808190,159.36535568,13.564,13.56,219.97660321]
[1672872808391,159.36535568,13.564,13.56,266.42443162]
[1672872808600,764.95370728,13.564,13.562,219.97660321]
[1672872809353,764.95370728,13.564,13.563,20.0]
[1672872809560,764.95370728,13.564,13.562,20.0]
[1672872809753,764.95370728,13.564,13.562,239.97660321]
[1672872809963,764.95370728,13.564,13.562,213.10930321]
[1672872810194,764.95370728,13.564,13.562,192.30980321]
[1672872810604,20.0,13.563,13.562,171.31590321]
[1672872810803,20.0,13.563,13.562,71.05590321]
[1672872811039,20.0,13.563,13.558,293.81412934]
[1672872811440,784.95370728,13.563,13.558,293.81412934]
[1672872812077,20.0,13.562,13.558,293.81412934]
[1672872812281,20.0,13.562,13.555,660.09239981]
[1672872813451,784.95370728,13.562,13.555,660.09239981]
[1672872813650,784.95370728,13.562,13.555,293.81412934]
[1672872813858,20.0,13.561,13.551,366.27827047]
[1672872814072,20.0,13.561,13.552,20.0]
[1672872814705,20.0,13.561,13.551,20.0]
[1672872814919,20.0,13.559,13.551,20.0]
[1672872815340,784.95370728,13.559,13.551,20.0]
[1672872815665,20.0,13.558,13.551,20.0]
[1672872815856,20.0,13.558,13.55,61.57]
[1672872817015,20.0,13.558,13.547,9.061]
[1672872817231,20.0,13.558,13.55,61.51]
[1672872817433,20.0,13.557,13.551,20.0]
[1672872817646,332.0,13.557,13.551,20.0]
[1672872817859,20.0,13.556,13.551,20.0]
[1672872818485,20.0,13.556,13.551,14.3214]
[1672872818694,20.0,13.556,13.55,12.42]
[1672872819651,20.0,13.555,13.55,12.42]
[1672872819974,20.0,13.555,13.547,9.061]
[1672872821415,764.95370728,13.555,13.547,9.061]
[1672872821630,20.0,13.554,13.547,9.061]
[1672872823434,20.0,13.553,13.547,9.061]
[1672872826373,20.0,13.553,13.54,61.48]
[1672872826572,20.0,13.553,13.541,20.0]
[1672872827208,20.0,13.553,13.541,29.062]
[1672872827853,20.0,13.553,13.541,20.0]
[1672872828072,20.0,13.552,13.541,20.0]
[1672872828380,20.0,13.552,13.541,29.062]
[1672872830165,20.0,13.551,13.541,29.062]
[1672872830591,20.0,13.551,13.541,9.062]
[1672872830801,20.0,13.549,13.54,36.74]
[1672872831002,20.0,13.547,13.54,36.74]
[1672872831212,55.41,13.546,13.54,36.74]
[1672872831417,20.0,13.545,13.54,18.278]
[1672872831643,20.0,13.545,13.531,118.8965]
[1672872831963,332.0,13.545,13.53,185.02]
[1672872832167,75.42,13.544,13.53,65.179]
[1672872832374,75.42,13.544,13.53,37.13]
[1672872832573,75.42,13.544,13.52,148.52]
[1672872832574,20.0,13.542,13.52,73.99]
[1672872832783,20.0,13.54,13.52,185.12]
[1672872832999,55.44,13.539,13.52,185.12]
[1672872833220,20.0,13.538,13.52,185.12]
[1672872833425,55.45,13.537,13.52,185.12]
[1672872833623,20.0,13.536,13.52,185.12]
[1672872833843,20.0,13.534,13.52,185.12]
[1672872834173,20.0,13.532,13.52,185.12]
[1672872835097,20.0,13.531,13.52,185.12]
[1672872835307,20.0,13.531,13.52,36.83]
[1672872835638,20.0,13.529,13.51,185.82]
[1672872835833,55.48,13.528,13.51,186.15]
[1672872836047,20.0,13.527,13.51,186.15]
[1672872836386,20.0,13.525,13.51,186.15]
[1672872836581,55.5,13.524,13.51,186.15]
[1672872836780,20.0,13.523,13.51,186.15]
[1672872836985,82.45932338,13.523,13.51,186.15]
[1672872837421,20.0,13.521,13.51,186.15]
[1672872837613,55.52,13.52,13.51,186.15]
[1672872837826,20.0,13.519,13.51,186.15]
[1672872838037,20.0,13.517,13.51,186.15]
[1672872839000,20.0,13.517,13.51,37.16]
[1672872839216,55.53,13.516,13.51,37.16]
[1672872839405,20.0,13.517,13.51,37.16]
[1672872839616,20.0,13.515,13.51,0.0001]
[1672872841321,93.07877292,13.515,13.51,0.0001]
[1672872841646,20.0,13.513,13.51,0.0001]
[1672872841839,20.0,13.513,13.503,113.2993]
[1672872843112,20.0,13.513,13.5,185.77]
[1672872843743,20.0,13.511,13.5,185.77]
[1672872843939,20.0,13.509,13.5,185.77]
[1672872844151,55.57,13.508,13.5,185.77]
[1672872844370,20.0,13.507,13.5,37.39]
[1672872844584,20.0,13.507,13.5,32.39]
[1672872845625,456.47316078,13.507,13.5,181.05]
[1672872845850,20.0,13.506,13.5,181.05]
[1672872847006,20.0,13.506,13.5,37.3]
[1672872847637,768.47316078,13.506,13.5,37.3]
[1672872847838,20.0,13.505,13.5,37.3]
[1672872848051,20.0,13.505,13.5,186.15]
[1672872848875,456.47316078,13.506,13.5,186.15]
[1672872849201,293.98616078,13.506,13.5,186.15]
[1672872849419,75.55,13.512,13.502,20.0]
[1672872849420,20.0,13.512,13.502,20.0]
[1672872849622,20.0,13.512,13.503,20.0]
[1672872849837,20.0,13.512,13.503,68.67171361]
[1672872850042,20.0,13.512,13.504,48.67171361]
[1672872850367,20.0,13.512,13.504,93.09107402]
[1672872850564,75.53,13.518,13.505,47.59136041]
[1672872850779,20.0,13.518,13.505,96.26307402]
[1672872851111,75.51,13.521,13.51,185.79]
[1672872851523,75.51,13.521,13.511,108.44844671]
[1672872851922,20.0,13.52,13.512,108.25548337]
[1672872852381,20.0,13.52,13.513,108.25548337]
[1672872852762,20.0,13.52,13.514,108.25548337]
[1672872852977,75.51,13.521,13.514,108.25548337]
[1672872853186,55.51,13.521,13.515,113.21281671]
[1672872853413,55.51,13.522,13.515,113.21281671]
[1672872853639,20.0,13.521,13.516,59.92523763]
[1672872853832,20.0,13.519,13.51,37.3]
[1672872854025,55.53,13.518,13.51,37.3]
[1672872854235,20.0,13.517,13.51,37.3]
[1672872854449,55.53,13.516,13.51,37.3]
[1672872855713,55.53,13.516,13.5,186.15]
[1672872855913,20.0,13.515,13.501,20.0]
[1672872856127,332.0,13.515,13.504,20.0]
[1672872856355,332.0,13.515,13.503,55.82978254]
[1672872856570,20.0,13.514,13.504,20.0]
[1672872857177,20.0,13.514,13.502,20.0]
[1672872857395,20.0,13.514,13.503,20.0]
[1672872857598,20.0,13.514,13.501,20.0]
[1672872859389,20.0,13.517,13.501,20.0]
[1672872860772,20.0,13.516,13.51,37.13]
[1672872860987,20.0,13.516,13.503,108.5258]
[1672872861177,20.0,13.516,13.504,20.0]
[1672872861386,20.0,13.515,13.504,20.0]
[1672872861613,55.54,13.514,13.501,20.0]
[1672872861822,20.0,13.513,13.501,20.0]
[1672872862972,20.0,13.513,13.5,36.83]
[1672872863186,20.0,13.511,13.5,36.83]
[1672872864114,20.0,13.51,13.5,36.83]
[1672872864330,20.0,13.51,13.5,58.6111836]
[1672872864753,20.0,13.51,13.501,20.0]
[1672872864957,20.0,13.515,13.501,20.0]
[1672872865164,20.0,13.515,13.503,20.0]
[1672872865600,20.0,13.515,13.504,147.04794099]
[1672872865808,20.0,13.515,13.504,127.04794099]
[1672872866029,20.0,13.515,13.504,71.21815845]
[1672872866646,20.0,13.515,13.504,21.7811836]
[1672872868540,20.0,13.515,13.501,20.0]
[1672872868743,20.0,13.514,13.501,20.0]
[1672872868961,20.0,13.514,13.501,41.7811836]
[1672872869582,75.54,13.514,13.501,41.7811836]
[1672872869795,20.0,13.513,13.501,20.0]
[1672872870218,20.0,13.51,13.501,20.0]
[1672872870544,20.0,13.51,13.501,41.7811836]
[1672872874216,20.0,13.509,13.501,41.7811836]
[1672872874635,312.0,13.51,13.501,41.7811836]
[1672872875171,20.0,13.509,13.501,41.7811836]
[1672872875370,20.0,13.509,13.502,21.7811836]
[1672872875582,20.0,13.509,13.5,36.83]
[1672872875792,20.0,13.509,13.501,21.7811836]
[1672872876412,55.53,13.518,13.501,21.7811836]
[1672872876621,20.0,13.52,13.51,37.13]
[1672872877897,20.0,13.52,13.511,20.0]
[1672872879145,20.0,13.522,13.511,20.0]
[1672872879351,36.5107766,13.523,13.513,20.0]
[1672872879587,36.5107766,13.523,13.514,20.0]
[1672872879789,36.5107766,13.523,13.514,41.7811836]
[1672872879998,36.5107766,13.523,13.515,21.7811836]
[1672872880201,36.5107766,13.523,13.516,20.0]
[1672872880626,36.5107766,13.523,13.517,21.7811836]
[1672872880836,36.5107766,13.523,13.518,20.0]
[1672872881045,5.4690766,13.523,13.518,20.0]
[1672872881357,5.4690766,13.523,13.519,21.7811836]
[1672872881694,5.4690766,13.523,13.52,20.0]
[1672872881994,7.66e-05,13.523,13.521,21.7811836]
[1672872882219,7.66e-05,13.523,13.522,20.0]
[1672872883031,7.66e-05,13.523,13.522,41.7811836]
[1672872884827,7.66e-05,13.523,13.522,99.98159654]
[1672872885031,54.4203819,13.531,13.522,144.55823782]
[1672872885256,84.2913051,13.538,13.523,20.0]
[1672872885465,84.2913051,13.538,13.53,185.98]
[1672872885671,84.2913051,13.538,13.532,20.0]
[1672872885999,84.2913051,13.538,13.534,20.0]
[1672872886205,84.2913051,13.538,13.535,84.04065887]
[1672872886438,78.306547,13.544,13.537,84.04065887]
[1672872886648,78.306547,13.544,13.538,20.0]
[1672872886845,78.306547,13.544,13.54,20.0]
[1672872887047,78.306547,13.544,13.541,84.04065887]
[1672872887048,26.008547,13.544,13.541,84.04065887]
[1672872887262,26.008547,13.544,13.543,84.04065887]
[1672872887472,26.008547,13.544,13.541,84.04065887]
[1672872887695,26.008547,13.544,13.543,84.04065887]
[1672872888524,58.03041413,13.563,13.545,84.04065887]
[1672872888525,55.37,13.556,13.545,84.04065887]
[1672872888741,55.37,13.556,13.547,84.04065887]
[1672872889178,55.35,13.562,13.547,84.04065887]
[1672872889370,108.2045,13.566,13.546,20.0]
[1672872889371,55.33,13.565,13.549,104.04065887]
[1672872889578,55.33,13.565,13.552,20.0]
[1672872889784,55.33,13.565,13.553,84.04065887]
[1672872890105,20.0,13.564,13.553,104.04065887]
[1672872890317,55.34,13.563,13.554,20.0]
[1672872890646,312.0,13.565,13.557,84.04065887]
[1672872890834,312.0,13.565,13.555,84.04065887]
[1672872891044,55.31,13.571,13.555,84.04065887]
[1672872891488,20.0,13.57,13.555,84.04065887]
[1672872891698,55.32,13.569,13.555,84.04065887]
[1672872891909,55.32,13.569,13.556,20.0]
[1672872892098,75.3,13.572,13.557,104.04065887]
[1672872892313,20.0,13.572,13.558,20.0]
[1672872894435,36.5107766,13.573,13.567,84.04065887]
[1672872894641,36.5107766,13.573,13.568,20.0]
[1672872894849,36.5107766,13.573,13.569,84.04065887]
[1672872895062,11.5107766,13.573,13.57,20.0]
[1672872895571,11.5107766,13.573,13.566,20.0]
[1672872895993,11.5107766,13.573,13.568,20.0]
[1672872896210,11.5107766,13.573,13.569,20.0]
[1672872896417,11.5107766,13.573,13.57,20.0]
[1672872899563,65.9310819,13.58,13.57,20.0]
[1672872899776,65.9310819,13.58,13.571,21.7811836]
[1672872899988,65.9310819,13.58,13.572,20.0]
[1672872903059,65.9310819,13.58,13.573,20.0]
[1672872903271,20.0,13.571,13.57,34.62]
[1672872903461,20.0,13.571,13.569,21.7811836]
[1672872904432,20.0,13.571,13.566,21.7811836]
[1672872905361,20.0,13.571,13.567,20.0]
[1672872907150,20.0,13.571,13.564,20.0]
[1672872908206,13.7898,13.571,13.563,20.0]
[1672872908416,13.7898,13.571,13.564,20.0]
[1672872911047,13.7898,13.571,13.564,71.81967959]
[1672872911374,13.7898,13.571,13.566,20.0]
[1672872911578,13.7898,13.571,13.567,20.0]
[1672872913678,13.7898,13.571,13.565,20.0]
[1672872914710,13.7898,13.571,13.564,20.0]
[1672872919679,13.7898,13.571,13.561,20.0]
[1672872920090,13.7898,13.571,13.556,20.0]
[1672872920306,13.7898,13.571,13.555,20.0]
[1672872920519,20.0,13.569,13.555,20.0]
[1672872920733,20.0,13.567,13.555,20.0]
[1672872921054,58.55696308,13.566,13.553,105.081442]
[1672872921248,177.32126308,13.566,13.553,105.081442]
[1672872921457,20.0,13.565,13.553,85.081442]
[1672872921684,20.0,13.563,13.553,85.081442]
[1672872921872,67.39269429,13.564,13.553,85.081442]
[1672872922210,67.39269429,13.564,13.554,20.0]
[1672872922608,67.39269429,13.565,13.554,20.0]
[1672872923040,20.0,13.564,13.554,20.0]
[1672872923251,71.72599893,13.563,13.554,20.0]
[1672872924301,71.72599893,13.563,13.553,85.081442]
[1672872924302,20.0,13.562,13.553,85.081442]
[1672872924622,20.0,13.562,13.541,20.0]
[1672872924623,84.04065887,13.551,13.54,184.75]
[1672872924826,84.04065887,13.551,13.542,30.0]
[1672872926515,84.04065887,13.551,13.54,36.68]
[1672872926937,84.04065887,13.551,13.541,20.0]
[1672872928917,20.0,13.55,13.541,20.0]
[1672872929130,84.04065887,13.549,13.534,20.0]
[1672872929334,20.0,13.548,13.536,30.0]
[1672872929545,20.0,13.546,13.537,20.0]
[1672872929877,84.04065887,13.545,13.537,20.0]
[1672872930080,84.04065887,13.545,13.534,20.0]
[1672872930292,84.04065887,13.545,13.532,20.0]
[1672872930923,20.0,13.544,13.532,20.0]
[1672872931131,84.04065887,13.543,13.532,20.0]
[1672872931333,20.0,13.542,13.531,394.0]
[1672872931558,84.04065887,13.543,13.531,394.0]
[1672872931559,20.0,13.543,13.533,20.0]
[1672872931890,20.0,13.543,13.531,394.0]
[1672872932083,84.04065887,13.544,13.532,20.0]
[1672872932412,84.04065887,13.547,13.532,20.0]
[1672872933241,84.04065887,13.547,13.534,30.0]
[1672872933452,84.04065887,13.547,13.535,20.0]
[1672872933664,84.04065887,13.547,13.536,20.0]
[1672872933867,20.0,13.551,13.536,20.0]
[1672872933868,84.04065887,13.549,13.536,20.0]
[1672872934404,84.04065887,13.547,13.536,20.0]
[1672872934724,84.04065887,13.547,13.535,20.0]
[1672872935035,84.04065887,13.547,13.534,30.0]
[1672872935462,20.0,13.548,13.532,20.0]
[1672872935646,84.04065887,13.546,13.532,20.0]
[1672872936308,84.04065887,13.544,13.532,20.0]
[1672872936703,84.04065887,13.544,13.534,20.0]
[1672872938278,84.04065887,13.544,13.536,20.0]
[1672872939224,143.5259827,13.552,13.536,20.0]
[1672872939434,143.5259827,13.552,13.54,37.1]
[1672872939657,42.87674303,13.551,13.541,20.0]
[1672872939871,143.5259827,13.552,13.542,20.0]
[1672872940186,143.5259827,13.552,13.543,20.0]
[1672872940370,44.16866868,13.551,13.543,20.0]
[1672872940583,64.16866868,13.551,13.541,20.0]
[1672872941006,44.16866868,13.551,13.541,20.0]
[1672872941213,143.5259827,13.552,13.541,20.0]
[1672872941975,20.0,13.551,13.541,20.0]
[1672872942186,143.5259827,13.552,13.541,20.0]
[1672872942380,20.0,13.551,13.541,20.0]
[1672872943015,143.5259827,13.552,13.541,20.0]
[1672872943429,143.5259827,13.552,13.543,20.0]
[1672872943638,143.5259827,13.552,13.544,20.0]
[1672872943849,143.5259827,13.552,13.544,41.7811836]
[1672872944170,143.5259827,13.552,13.545,21.7811836]
[1672872944370,143.5259827,13.552,13.546,20.0]
[1672872944586,34.3882827,13.552,13.546,20.0]
[1672872944800,34.3882827,13.552,13.547,21.7811836]
[1672872945230,34.3882827,13.552,13.548,20.0]
[1672872945657,34.3882827,13.552,13.549,21.7811836]
[1672872946067,34.3882827,13.552,13.55,20.0]
[1672872946392,34.3882827,13.552,13.55,41.7811836]
[1672872948915,43.60665597,13.549,13.543,25.41]
[1672872949126,43.60665597,13.549,13.541,25.55]
[1672872949345,43.60665597,13.549,13.544,21.7811836]
[1672872950085,43.60665597,13.549,13.545,20.0]
[1672872950493,43.60665597,13.549,13.546,21.7811836]
[1672872950698,43.60665597,13.549,13.547,20.0]
[1672872951126,43.60665597,13.549,13.548,21.7811836]
[1672872951557,43.60665597,13.549,13.548,41.7811836]
[1672872956703,43.60665597,13.549,13.548,38.7679836]
[1672872956924,43.60665597,13.549,13.548,17.6179836]
[1672872957224,43.60665597,13.549,13.543,25.55]
[1672872957638,43.60665597,13.549,13.543,47.3311836]
[1672872958068,43.60665597,13.549,13.544,20.0]
[1672872958394,43.60665597,13.549,13.544,71.36319738]
[1672872958701,43.60665597,13.549,13.545,21.7811836]
[1672872959020,43.60665597,13.549,13.546,20.0]
[1672872963434,43.60665597,13.549,13.546,71.36319738]
[1672872965118,43.60665597,13.549,13.546,20.0]
[1672872965726,43.60665597,13.549,13.546,41.7811836]
[1672872965934,43.60665597,13.549,13.546,93.14438098]
[1672872967527,43.60665597,13.549,13.546,133.77110142]
[1672872968564,43.60665597,13.549,13.546,177.85455127]
[1672872969608,43.60665597,13.549,13.546,133.77110142]
[1672872970688,43.60665597,13.549,13.546,111.98991782]
[1672872970882,43.60665597,13.549,13.546,91.98991782]
[1672872971094,43.60665597,13.549,13.547,20.0]
[1672872972053,43.60665597,13.549,13.545,20.0]
[1672872972578,43.60665597,13.549,13.546,21.7811836]
[1672872972984,43.60665597,13.549,13.547,20.0]
[1672872973399,43.60665597,13.549,13.547,41.7811836]
[1672872974576,38.60665597,13.549,13.547,41.7811836]
[1672872982467,38.60665597,13.549,13.548,47.91648562]
[1672872982657,38.60665597,13.549,13.548,67.91648562]
[1672872982868,38.60665597,13.549,13.548,89.69766922]
[1672872983708,38.60665597,13.549,13.548,133.6090565]
[1672872985929,38.60665597,13.549,13.548,85.69257088]
[1672872987922,38.60665597,13.549,13.548,133.6090565]
[1672872988134,34.3882827,13.552,13.549,20.0]
[1672872988458,34.3882827,13.552,13.55,133.6090565]
[1672872988642,34.3882827,13.552,13.551,20.0]
[1672872988854,34.3882827,13.552,13.551,177.69250635]
[1672872989064,34.3882827,13.552,13.551,197.69250635]
[1672872989606,34.3882827,13.552,13.551,177.69250635]
[1672872990554,34.3882827,13.552,13.551,133.6090565]
[1672872991601,34.3882827,13.552,13.551,111.8278729]
[1672872991819,34.3882827,13.552,13.551,20.0]
[1672872992127,34.3882827,13.552,13.551,21.7811836]
[1672872992529,34.3882827,13.552,13.551,41.7811836]
[1672872994211,116.2142,13.563,13.552,20.0]
[1672872994421,116.2142,13.563,13.553,20.0]
[1672872994635,116.2142,13.563,13.553,87.31510508]
[1672872994845,116.2142,13.563,13.554,67.31510508]
[1672872995050,116.2142,13.563,13.555,20.0]
[1672872995295,116.2142,13.563,13.555,87.31510508]
[1672872995507,116.2142,13.563,13.556,67.31510508]
[1672872995719,420.5481,13.566,13.557,20.0]
[1672872995923,420.5481,13.566,13.557,41.7811836]
[1672872996133,420.5481,13.566,13.558,21.7811836]
[1672872996333,420.5481,13.566,13.559,20.0]
[1672872996756,420.5481,13.566,13.56,21.7811836]
[1672872997083,108.5481,13.566,13.561,20.0]
[1672872997506,108.5481,13.566,13.561,41.7811836]
[1672872999091,117.8184,13.568,13.561,41.7811836]
[1672872999291,20.0,13.57,13.561,41.7811836]
[1672872999618,20.0,13.57,13.561,20.0]
[1672872999803,20.0,13.57,13.559,20.0]
[1672873000223,20.0,13.57,13.56,21.7811836]
[1672873000659,498.2256,13.572,13.561,20.0]
[1672873000974,442.9256,13.572,13.561,20.0]
[1672873001387,442.9256,13.572,13.561,41.7811836]
[1672873001606,422.9256,13.572,13.561,41.7811836]
[1672873002007,20.0,13.571,13.561,41.7811836]
[1672873002776,20.0,13.571,13.561,41.69409892]
[1672873004758,110.9256,13.572,13.561,41.69409892]
[1672873006683,20.0,13.571,13.561,41.69409892]
[1672873006873,332.0,13.571,13.561,41.69409892]
[1672873007090,332.0,13.571,13.561,92.6516204]
[1672873007728,312.0,13.571,13.561,92.6516204]
[1672873009745,110.9256,13.572,13.561,41.69409892]
[1672873009916,110.9256,13.572,13.561,184.9714373]
[1672873010247,110.9256,13.572,13.562,20.0]
[1672873010779,110.9256,13.572,13.563,92.73870508]
[1672873011178,110.9256,13.572,13.564,121.62160546]
[1672873011388,110.9256,13.572,13.565,20.0]
[1672873011610,110.9256,13.572,13.565,90.66408398]
[1672873011833,110.9256,13.572,13.566,21.7811836]
[1672873012020,112.7144,13.573,13.567,20.0]
[1672873012445,112.7144,13.573,13.568,21.7811836]
[1672873012655,112.7144,13.573,13.569,20.0]
[1672873012881,424.7144,13.573,13.569,20.0]
[1672873013086,424.7144,13.573,13.569,41.7811836]
[1672873013295,312.0,13.573,13.569,41.7811836]
[1672873014447,234.5299819,13.58,13.569,41.7811836]